bitfinex-derivatives/quotes_ETHF0:USTF0_20241026
["timestamp","ask_amount","ask_price","bid_price","bid_amount"]
[1729908900501,3.2078,2438.9,2438.6,1.2831]
[1729908900699,0.41064,2438.7,2438.6,1.2831]
[1729908900903,3.2078,2438.9,2438.6,1.2831]
[1729908901094,0.41064,2438.7,2438.6,1.2831]
[1729908902293,0.41064,2438.7,2438.0,2.88515594]
[1729908902294,8.2246,2438.7,2438.0,2.88515594]
[1729908902615,0.41075,2438.1,2438.0,4.19885594]
[1729908903101,0.41072,2438.3,2438.0,4.19885594]
[1729908903295,0.41071,2438.3,2438.0,4.19885594]
[1729908903494,0.41073,2438.2,2438.0,4.19885594]
[1729908903901,3.2078,2438.4,2438.0,4.19885594]
[1729908903902,0.41072,2438.3,2438.0,4.19885594]
[1729908904201,0.916,2438.6,2438.3,2.88515594]
[1729908904406,3.2078,2438.5,2438.4,0.4116]
[1729908905295,3.61848,2438.5,2438.4,0.4116]
[1729908905797,3.2078,2438.5,2438.4,0.4116]
[1729908906205,3.61848,2438.5,2438.4,0.4116]
[1729908906402,1.13447219,2439.0,2438.4,0.4116]
[1729908906403,3.2078,2438.8,2438.4,4.5124]
[1729908906699,3.2078,2438.8,2438.5,3.76605594]
[1729908906895,0.41066,2438.7,2438.5,3.76605594]
[1729908907396,3.61844,2438.8,2438.5,3.76605594]
[1729908908004,0.41064,2438.8,2438.5,3.76605594]
[1729908908504,0.916,2439.0,2438.5,7.86685594]
[1729908908803,0.41062,2438.9,2438.5,3.76605594]
[1729908909201,0.916,2439.0,2438.5,3.76605594]
[1729908909408,0.916,2439.0,2438.5,4.17673594]
[1729908909409,1.3266,2439.0,2438.5,4.17673594]
[1729908909600,0.4106,2439.0,2438.5,4.17673594]
[1729908909901,0.4106,2439.0,2438.8,2.88515594]
[1729908910103,0.4106,2439.0,2438.9,0.4332]
[1729908910801,0.41057,2439.2,2438.9,4.5332]
[1729908911006,0.41057,2439.2,2439.0,0.8577]
[1729908911305,4.1238,2439.4,2439.0,3.74285594]
[1729908911496,0.41056,2439.3,2439.0,3.74285594]
[1729908912305,1.32653,2439.4,2439.0,3.74285594]
[1729908912805,0.41055,2439.3,2439.0,3.74285594]
[1729908913000,0.916,2439.4,2439.0,3.74285594]
[1729908913206,0.41053,2439.5,2439.0,3.74285594]
[1729908913395,3.2078,2439.7,2439.4,2.88515594]
[1729908913600,3.2078,2439.7,2439.5,0.4263]
[1729908913809,0.41049,2439.6,2439.5,1.2946]
[1729908914007,0.916,2439.9,2439.5,1.2946]
[1729908914207,0.41048,2439.7,2439.5,1.2946]
[1729908915199,0.41047,2439.8,2439.5,1.2946]
[1729908916108,4.1238,2440.0,2439.5,1.2946]
[1729908916506,0.41049,2439.6,2439.5,1.2946]
[1729908916908,0.41049,2439.6,2439.5,0.8809]
[1729908917210,4.1238,2440.0,2439.5,0.8809]
[1729908917211,0.41048,2439.7,2439.5,0.8809]
[1729908917507,4.1238,2440.0,2439.5,0.8809]
[1729908917709,7.00895594,2440.0,2439.2,3.31225594]
[1729908917920,0.4105,2439.6,2439.3,0.8812]
[1729908919004,4.1238,2440.0,2439.4,2.88515594]
[1729908919516,0.41052,2439.5,2439.3,0.8812]
[1729908919699,0.41053,2439.4,2439.3,0.8812]
[1729908920201,0.41052,2439.5,2439.3,0.8812]
[1729908920705,0.41053,2439.4,2439.3,0.8812]
[1729908923911,0.41057,2439.2,2438.8,2.88515594]
[1729908924109,0.41058,2439.1,2439.0,0.452]
[1729908924308,4.24525594,2439.4,2438.9,0.4241]
[1729908924508,3.2078,2439.2,2438.9,0.4241]
[1729908924714,0.41059,2439.0,2438.9,0.4241]
[1729908924913,0.41059,2439.1,2438.9,0.4241]
[1729908925114,3.2078,2439.2,2438.9,0.4241]
[1729908925115,3.61837,2439.2,2438.9,0.4241]
[1729908925308,3.2078,2439.2,2438.9,0.4241]
[1729908925510,0.41059,2439.1,2438.9,0.4241]
[1729908926314,0.41059,2439.0,2438.9,0.4241]
[1729908926513,0.41059,2439.0,2438.8,0.4326]
[1729908926514,0.41061,2438.9,2438.8,0.4326]
[1729908926815,0.41061,2438.9,2438.4,0.4222]
[1729908926816,3.2078,2438.9,2438.4,0.4222]
[1729908927018,6.51375594,2438.9,2438.4,0.4222]
[1729908927314,0.41068,2438.6,2438.4,0.4222]
[1729908927819,0.41068,2438.5,2438.1,3.31645594]
[1729908928013,0.41067,2438.6,2438.1,3.73865594]
[1729908928522,0.41069,2438.5,2438.1,3.73865594]
[1729908930018,0.915,2438.8,2438.1,3.73865594]
[1729908930019,0.4107,2438.4,2438.1,3.73865594]
[1729908930325,3.2078,2438.6,2438.1,3.73865594]
[1729908930621,0.4107,2438.4,2438.1,3.73865594]
[1729908931521,3.2078,2438.6,2438.1,3.73865594]
[1729908931725,0.41069,2438.5,2438.1,3.73865594]
[1729908932522,0.4107,2438.4,2438.1,3.73865594]
[1729908933718,0.41073,2438.2,2438.1,0.4222]
[1729908933924,0.41073,2438.2,2438.0,0.4326]
[1729908933925,0.41074,2438.2,2438.0,0.4326]
[1729908934811,3.2078,2438.3,2438.0,0.4326]
[1729908935013,0.41074,2438.2,2438.0,0.4326]
[1729908935217,0.41075,2438.1,2438.0,0.4326]
[1729908935415,0.41074,2438.2,2438.0,0.4326]
[1729908936724,3.61852,2438.3,2438.0,0.4326]
[1729908937822,3.2078,2438.3,2438.0,0.4326]
[1729908938127,0.41073,2438.2,2438.0,0.4326]
[1729908938519,3.2078,2438.3,2438.0,0.4326]
[1729908938719,0.41073,2438.2,2438.0,0.4326]
[1729908940524,0.41077,2438.0,2437.8,0.4479]
[1729908940720,0.85976,2438.1,2437.8,0.4479]
[1729908940927,3.2078,2438.0,2437.8,0.4479]
[1729908941227,3.61857,2438.0,2437.8,0.4479]
[1729908942128,0.41078,2437.9,2437.8,0.4479]
[1729908942828,4.53457,2438.0,2437.8,0.4479]
[1729908943026,4.1238,2438.0,2437.8,0.4479]
[1729908943931,4.53456,2438.0,2437.8,0.4479]
[1729908944129,4.1238,2438.0,2437.8,0.4479]
[1729908944939,3.2078,2438.0,2437.8,0.4479]
[1729908945128,0.41074,2438.2,2437.8,0.4479]
[1729908945328,1.32673,2438.3,2437.8,0.4479]
[1729908946041,4.5345,2438.4,2438.0,2.88515594]
[1729908946244,4.5345,2438.4,2438.1,0.4096]
[1729908946639,0.41071,2438.3,2438.2,0.4453]
[1729908948941,4.1238,2438.4,2438.1,0.4096]
[1729908949141,0.41073,2438.2,2438.1,0.4096]
[1729908949949,4.1238,2438.4,2438.1,0.4096]
[1729908950135,4.53451,2438.4,2438.2,0.4439]
[1729908950532,4.53451,2438.4,2438.3,0.4233]
[1729908950742,4.1238,2438.4,2438.3,0.4233]
[1729908950943,3.2078,2438.4,2438.3,0.4233]
[1729908951941,3.61849,2438.4,2438.3,0.4233]
[1729908952338,10.19375594,2438.4,2437.5,3.29599594]
[1729908952534,10.19375594,2438.4,2437.6,0.4428]
[1729908952535,0.41077,2438.0,2437.6,0.4428]
[1729908952739,0.41078,2438.0,2437.6,0.4428]
[1729908954240,0.41078,2437.9,2437.6,0.4428]
[1729908954740,3.2078,2438.1,2437.6,0.4428]
[1729908954741,0.41081,2437.7,2437.6,0.4428]
[1729908955634,3.2078,2437.8,2437.6,0.4428]
[1729908955836,0.41081,2437.7,2437.6,0.4428]
[1729908957144,0.41081,2437.8,2437.6,0.4428]
[1729908957347,0.41081,2437.7,2437.6,0.4428]
[1729908958440,4.1228,2437.9,2437.6,0.4428]
[1729908958647,0.4108,2437.8,2437.6,0.4428]
[1729908959644,4.53359,2437.9,2437.6,0.4428]
[1729908959848,4.53359,2437.9,2437.6,0.85363]
[1729908959849,4.1228,2437.9,2437.6,0.85363]
[1729908960044,3.2078,2437.9,2437.7,0.41081]
[1729908960239,3.2078,2437.9,2437.7,3.29596594]
[1729908960446,3.2078,2437.9,2437.8,0.443]
[1729908960846,0.915,2438.3,2437.9,0.41078]
[1729908961048,4.082,2438.5,2438.0,3.29590594]
[1729908961242,0.4107,2438.4,2438.0,3.29590594]
[1729908962043,0.4107,2438.4,2438.0,2.88515594]
[1729908962750,0.4107,2438.4,2438.0,3.29590594]
[1729908962940,4.49269,2438.5,2438.0,3.29590594]
[1729908963339,4.1228,2438.9,2438.4,2.88515594]
[1729908963539,0.41066,2438.6,2438.5,0.4098]
[1729908963952,0.41065,2438.7,2438.5,0.4098]
[1729908964252,4.1228,2438.9,2438.5,0.82048]
[1729908964253,3.61842,2438.9,2438.5,0.82048]
[1729908964445,0.4503,2439.0,2438.6,3.29580594]
[1729908964644,0.4503,2439.0,2438.6,2.88515594]
[1729908964854,0.4503,2439.0,2438.6,3.29581594]
[1729908965448,0.4503,2439.0,2438.6,2.88515594]
[1729908965843,0.4503,2439.0,2438.6,3.29581594]
[1729908966048,0.4503,2439.0,2438.6,3.29580594]
[1729908966243,3.2078,2439.3,2438.8,2.88515594]
[1729908966452,3.2078,2439.7,2439.0,2.88515594]
[1729908966755,0.41056,2439.2,2439.1,0.4205]
[1729908966955,2.88515594,2439.5,2438.9,0.4112]
[1729908967155,0.41057,2439.2,2438.9,0.4112]
[1729908968054,2.88515594,2439.5,2438.9,0.4112]
[1729908968257,0.82768,2439.1,2438.9,0.4112]
[1729908968551,0.41059,2439.0,2438.7,0.4205]
[1729908968747,0.8855,2439.0,2438.7,0.4205]
[1729908968949,3.77065594,2439.0,2438.5,3.2078]
[1729908969153,0.41065,2438.7,2438.4,0.4175]
[1729908969759,4.68565594,2439.0,2438.4,0.4175]
[1729908969960,0.41064,2438.8,2438.4,0.4175]
[1729908970149,4.68565594,2439.0,2438.4,0.4175]
[1729908970459,2.88515594,2438.8,2438.4,0.4175]
[1729908970659,0.41065,2438.7,2438.4,0.4175]
[1729908970857,0.4153,2438.6,2438.4,0.4175]
[1729908971453,0.82596,2438.6,2438.4,0.4175]
[1729908971755,0.4153,2438.6,2438.4,0.4175]
[1729908972467,0.82597,2438.6,2438.4,0.4175]
[1729908972661,0.4153,2438.6,2438.4,0.4175]
[1729908973063,0.82597,2438.6,2438.3,0.4221]
[1729908973263,1.27337,2438.6,2438.3,0.4221]
[1729908974560,0.8627,2438.6,2438.3,0.4221]
[1729908974762,0.41069,2438.5,2438.3,0.4221]
[1729908975061,0.8627,2438.6,2438.3,0.4221]
[1729908975256,1.27337,2438.6,2438.3,0.4221]
[1729908976564,0.41069,2438.5,2438.3,0.4221]
[1729908977263,0.41069,2438.5,2438.0,3.73860594]
[1729908977264,3.74785594,2438.6,2438.0,0.4427]
[1729908977465,0.41072,2438.3,2438.0,0.8805]
[1729908977762,0.41071,2438.3,2438.0,0.8805]
[1729908978260,3.6468,2438.5,2438.0,0.8805]
[1729908978762,0.4107,2438.4,2438.0,0.8805]
[1729908979760,3.6468,2438.5,2438.0,0.8805]
[1729908979957,3.6468,2438.5,2438.0,0.4378]
[1729908980160,0.41075,2438.1,2437.7,0.422]
[1729908980363,0.41075,2438.1,2437.7,1.2879]
[1729908980562,0.82696,2438.0,2437.7,0.8659]
[1729908980758,0.8571,2438.0,2437.7,0.8659]
[1729908981058,0.8571,2438.0,2437.3,1.07082079]
[1729908981059,0.8571,2438.0,2437.3,4.27862079]
[1729908981260,0.41083,2437.6,2437.4,0.8659]
[1729908981663,2.88515594,2437.8,2437.0,4.27862079]
[1729908981860,0.82705,2437.5,2437.1,0.4167]
[1729908982654,0.4162,2437.5,2437.1,0.4167]
[1729908982854,0.41087,2437.4,2437.1,0.4167]
[1729908983458,0.4162,2437.5,2437.1,0.4167]
[1729908983659,0.4109,2437.2,2437.1,0.4167]
[1729908984956,0.41089,2437.3,2437.1,0.4167]
[1729908985656,0.41087,2437.4,2437.1,0.4167]
[1729908986366,0.4162,2437.5,2437.2,0.41089]
[1729908986564,0.4162,2437.5,2437.1,0.82761]
[1729908986972,0.4162,2437.5,2437.2,0.41089]
[1729908987767,0.4162,2437.5,2437.1,0.82761]
[1729908988262,3.2078,2437.6,2437.1,0.4167]
[1729908988461,3.2078,2437.6,2437.2,0.41089]
[1729908988962,3.61863,2437.6,2437.1,0.8276]
[1729908989363,3.2078,2437.6,2437.1,0.4167]
[1729908989669,3.2078,2437.6,2437.3,0.41088]
[1729908989869,3.2078,2437.6,2437.4,0.4129]
[1729908990163,3.2078,2438.1,2437.5,2.88515594]
[1729908990365,3.2078,2438.1,2437.6,3.6496]
[1729908990665,0.41077,2438.0,2437.6,3.6496]
[1729908991466,0.41076,2438.1,2437.6,4.06043]
[1729908991962,1.338,2438.2,2437.6,3.6496]
[1729908992167,0.41075,2438.1,2437.6,4.06042]
[1729908993365,0.41075,2438.1,2437.6,3.6496]
[1729908993668,1.338,2438.2,2437.6,3.6496]
[1729908993669,4.5368,2438.4,2437.7,2.88515594]
[1729908993869,4.9475,2438.4,2437.7,2.88515594]
[1729908994065,4.0325,2438.4,2437.9,0.41076]
[1729908994266,3.6218,2438.4,2438.0,0.8728]
[1729908994466,0.41071,2438.3,2438.0,0.8728]
[1729908994770,4.0325,2438.4,2438.1,0.4278]
[1729908996273,3.2078,2438.7,2438.3,0.4107]
[1729908996463,0.41065,2438.7,2438.3,0.4107]
[1729908996665,3.2078,2438.9,2438.3,2.88515594]
[1729908996973,1.7513,2439.0,2438.5,0.41067]
[1729908997163,0.41063,2438.9,2438.6,0.8695]
[1729908999370,1.3407,2439.0,2438.6,0.8695]
[1729909000566,3.61837,2439.2,2438.6,1.28015]
[1729909000764,3.61837,2439.2,2438.6,1.2981]
[1729909000765,0.41059,2439.1,2438.6,1.2981]
[1729909001272,4.1228,2439.2,2438.6,1.2981]
[1729909001463,4.53337,2439.2,2438.7,0.41064]
[1729909001668,4.53337,2439.2,2438.6,1.2981]
[1729909001871,0.41058,2439.1,2438.6,1.70875]
[1729909002174,4.53337,2439.2,2438.7,0.41064]
[1729909002576,4.53337,2439.2,2438.6,1.70875]
[1729909002872,0.44,2439.3,2438.9,0.41061]
[1729909003068,0.44,2439.3,2438.8,3.2078]
[1729909003269,0.44,2439.3,2438.9,0.4106]
[1729909003469,1.32552,2439.5,2438.9,0.4106]
[1729909003771,0.915,2439.5,2438.9,0.4106]
[1729909003977,0.915,2439.5,2438.8,3.2078]
[1729909004278,0.41053,2439.4,2438.8,3.61842]
[1729909004775,0.915,2439.5,2438.8,3.61842]
[1729909004977,0.41055,2439.3,2438.8,3.61842]
[1729909005873,0.41054,2439.4,2438.9,0.4106]
[1729909006071,0.41054,2439.4,2439.0,0.4248]
[1729909006265,0.41054,2439.4,2439.1,0.4433]
[1729909008674,0.41054,2439.3,2439.1,0.4433]
[1729909008866,0.41053,2439.4,2439.1,0.4433]
[1729909009472,2.88515594,2439.5,2439.1,0.4433]
[1729909009676,3.29567594,2439.5,2439.1,0.4433]
[1729909011269,0.41052,2439.5,2439.1,0.4433]
[1729909011471,4.04777,2439.8,2439.3,0.41053]
[1729909011679,3.2078,2439.8,2439.2,3.29795594]
[1729909011873,3.61827,2439.8,2439.2,3.29795594]
[1729909012078,1.3315,2440.0,2439.2,3.29795594]
[1729909012374,0.4165,2440.0,2439.6,0.41048]
[1729909012576,0.4165,2440.0,2439.7,0.8536]
[1729909013082,4.0891,2440.2,2439.7,0.8536]
[1729909013476,4.0891,2440.2,2439.7,1.26407]
[1729909013669,4.0891,2440.2,2439.7,1.3014]
[1729909013978,4.4995,2440.2,2439.7,1.3014]
[1729909014478,4.4995,2440.2,2439.7,1.71187]
[1729909014677,4.4995,2440.2,2439.7,1.3014]
[1729909015783,0.41042,2440.1,2439.7,1.3014]
[1729909016879,4.0891,2440.2,2439.7,1.3014]
[1729909017074,4.0891,2440.2,2439.7,0.8536]
[1729909017277,0.41046,2439.8,2439.4,3.2078]
[1729909017490,0.41045,2439.9,2439.4,4.06622]
[1729909017787,0.41048,2439.7,2439.4,3.6557]
[1729909018083,0.41048,2439.7,2439.4,0.4479]
[1729909018279,0.4243,2439.6,2439.4,0.4479]
[1729909018477,0.41047,2439.8,2439.4,0.4479]
[1729909018679,0.4462,2440.0,2439.4,0.8693]
[1729909019075,0.41046,2439.8,2439.4,1.27983]
[1729909019271,0.41046,2439.8,2439.4,0.8693]
[1729909019984,0.41045,2439.9,2439.4,7.37277594]
[1729909020780,0.85664,2440.0,2439.5,0.4105]
[1729909021082,1.32439,2440.2,2439.8,3.2078]
[1729909021276,0.41039,2440.2,2439.9,0.8817]
[1729909021476,0.41041,2440.1,2439.9,0.8817]
[1729909022077,1.3341,2440.5,2439.9,0.8817]
[1729909022281,1.3341,2440.5,2439.9,1.29213]
[1729909022477,0.41036,2440.4,2439.9,1.72523]
[1729909022679,1.29185,2440.5,2439.9,1.72523]
[1729909022879,0.4462,2440.5,2440.1,0.41041]
[1729909023285,0.4462,2440.5,2440.0,2.88515594]
[1729909023583,0.4462,2440.5,2439.9,1.3148]
[1729909023780,0.4462,2440.5,2440.0,0.41043]
[1729909024283,0.85654,2440.5,2440.0,0.41043]
[1729909024996,0.85654,2440.5,2440.0,3.29558594]
[1729909025284,0.4462,2440.5,2440.0,3.29558594]
[1729909025480,0.41038,2440.3,2440.0,2.88515594]
[1729909025681,0.4462,2440.5,2440.0,2.88515594]
[1729909025881,0.41037,2440.4,2440.0,2.88515594]
[1729909026683,0.85655,2440.5,2440.0,3.29557594]
[1729909026878,0.41036,2440.4,2440.0,3.29557594]
[1729909027082,0.41036,2440.4,2440.0,2.88515594]
[1729909027587,0.85655,2440.5,2440.0,2.88515594]
[1729909028491,0.4462,2440.5,2440.0,2.88515594]
[1729909028989,0.4462,2440.5,2440.2,2.88515594]
[1729909029183,0.4462,2440.5,2440.3,0.4412]
[1729909029378,3.2078,2441.0,2440.4,2.88515594]
[1729909029589,3.6461,2441.0,2440.6,2.88515594]
[1729909029787,0.41027,2440.9,2440.6,2.88515594]
[1729909030486,4.0938,2441.0,2440.6,2.88515594]
[1729909030788,0.4103,2440.8,2440.6,2.88515594]
[1729909031285,0.41028,2440.9,2440.4,7.33580594]
[1729909032278,4.50406,2441.0,2440.4,6.92545594]
[1729909032494,4.50406,2441.0,2440.7,2.88515594]
[1729909032685,0.41028,2440.9,2440.7,2.88515594]
[1729909033284,4.50406,2441.0,2440.7,2.88515594]
[1729909033485,3.6461,2441.0,2440.8,0.4241]
[1729909033690,3.2078,2441.0,2440.9,0.4342]
[1729909033993,3.61806,2441.0,2440.9,0.4342]
[1729909035488,0.4205,2441.3,2440.9,3.31935594]
[1729909035694,1.2855,2441.4,2440.9,3.31935594]
[1729909035993,0.41021,2441.3,2440.9,4.17222594]
[1729909036486,1.2855,2441.4,2440.9,4.17222594]
[1729909036692,0.8753,2441.4,2440.9,4.17222594]
[1729909036894,0.41021,2441.3,2440.9,4.17222594]
[1729909037284,0.41021,2441.3,2440.9,3.76195594]
[1729909037490,0.8753,2441.4,2440.9,4.17222594]
[1729909037491,1.2855,2441.4,2440.9,4.17222594]
[1729909037988,3.2078,2441.7,2441.1,2.88515594]
[1729909038195,0.4119,2441.7,2441.3,2.88515594]
[1729909038388,0.4119,2441.7,2441.4,0.866]
[1729909038592,0.4119,2441.7,2441.4,4.0738]
[1729909038593,0.20638458,2441.7,2441.4,4.0738]
[1729909039193,0.4211,2441.8,2441.4,4.0738]
[1729909039393,0.41015,2441.7,2441.4,4.0738]
[1729909040394,0.4211,2441.8,2441.4,4.0738]
[1729909040593,0.41017,2441.6,2441.4,0.866]
[1729909041193,0.4211,2441.8,2441.4,0.866]
[1729909041398,0.41017,2441.5,2441.4,0.866]
[1729909041595,0.41016,2441.6,2441.4,0.866]
[1729909042303,0.41015,2441.7,2441.4,0.866]
[1729909042894,0.4211,2441.8,2441.4,0.866]
[1729909043098,0.41015,2441.7,2441.5,2.88515594]
[1729909043601,0.41016,2441.6,2441.5,2.88515594]
[1729909044303,0.41017,2441.5,2441.4,0.866]
[1729909044896,0.41016,2441.6,2441.4,0.866]
[1729909045501,0.41013,2441.8,2441.4,0.866]
[1729909045695,0.41013,2441.8,2441.5,2.88515594]
[1729909045998,0.41011,2441.9,2441.5,2.88515594]
[1729909046192,0.41013,2441.8,2441.5,2.88515594]
[1729909046593,1.2869,2442.0,2441.5,2.88515594]
[1729909046900,0.41015,2441.7,2441.4,0.866]
[1729909047107,0.41013,2441.8,2441.4,0.866]
[1729909047501,0.41014,2441.7,2441.5,2.88515594]
[1729909048090,0.41013,2441.8,2441.5,2.88515594]
[1729909048294,1.2869,2442.0,2441.5,2.88515594]
[1729909049009,0.41014,2441.7,2441.5,2.88515594]
[1729909050496,1.2869,2442.0,2441.5,2.88515594]
[1729909050801,0.41017,2441.6,2441.4,0.866]
[1729909051001,1.2869,2442.0,2441.4,0.866]
[1729909051202,1.2869,2442.0,2441.3,2.88515594]
[1729909051496,0.41018,2441.5,2441.3,2.88515594]
[1729909052403,0.41019,2441.4,2441.3,2.88515594]
[1729909052605,0.85749,2441.4,2441.3,2.88515594]
[1729909052800,0.85749,2441.4,2441.1,6.96485594]
[1729909052801,0.41022,2441.2,2441.1,6.96485594]
[1729909053108,0.41022,2441.2,2441.1,0.8719]
[1729909053413,0.41026,2441.0,2440.8,2.88515594]
[1729909053602,0.41025,2441.1,2440.9,0.8425]
[1729909053800,0.41025,2441.1,2441.0,2.88515594]
[1729909054000,0.41023,2441.2,2441.0,2.88515594]
[1729909054206,0.4245,2441.3,2441.0,2.88515594]
[1729909054207,0.41021,2441.3,2441.0,2.88515594]
[1729909054502,0.41018,2441.5,2441.2,2.88515594]
[1729909054809,0.41018,2441.5,2441.3,0.413]
[1729909055702,1.32316,2441.6,2441.4,0.4232]
[1729909055898,0.41017,2441.5,2441.4,0.4232]
[1729909056098,0.913,2441.6,2441.3,0.413]
[1729909056302,0.41022,2441.2,2441.1,0.4232]
[1729909056900,0.41022,2441.2,2441.1,0.851]
[1729909057401,0.41022,2441.3,2441.1,0.851]
[1729909057992,4.1208,2441.6,2441.1,0.851]
[1729909058198,0.41016,2441.7,2441.5,2.88515594]
[1729909058400,0.4473,2441.8,2441.5,2.88515594]
[1729909058708,0.41013,2441.8,2441.6,0.8657]
[1729909061203,4.06272,2441.9,2441.7,2.88515594]
[1729909061503,0.4439,2442.1,2441.7,3.29528594]
[1729909061692,0.41007,2442.2,2441.9,2.88515594]
[1729909062200,0.41007,2442.1,2442.0,0.4226]
[1729909062403,0.41007,2442.1,2441.9,2.88515594]
[1729909063900,0.41011,2441.9,2441.7,3.32345594]
[1729909066500,0.41012,2441.8,2441.7,3.32345594]
[1729909066706,0.41012,2441.8,2441.7,0.4383]
[1729909068000,0.41014,2441.7,2441.6,0.4379]
[1729909074804,0.41013,2441.8,2441.6,0.4379]
[1729909075011,0.4184,2441.9,2441.6,0.4379]
[1729909075216,0.41013,2441.8,2441.6,0.4379]
[1729909077907,3.625,2442.0,2441.6,0.4379]
[1729909078107,0.06494708,2441.9,2441.6,0.4379]
[1729909078308,0.47505708,2441.9,2441.6,0.4379]
[1729909078516,0.41011,2441.9,2441.6,0.4379]
[1729909078711,3.2078,2442.0,2441.6,0.4379]
[1729909078919,0.41013,2441.8,2441.6,0.4379]
[1729909079305,0.41011,2441.9,2441.6,0.4379]
[1729909079908,3.2078,2442.0,2441.6,0.4379]
[1729909080113,0.06494693,2441.9,2441.6,0.4379]
[1729909080417,0.41013,2441.8,2441.6,0.4379]
[1729909081012,3.2078,2442.0,2441.5,0.4515]
[1729909081013,0.41015,2441.7,2441.5,0.4515]
[1729909081212,0.41011,2441.9,2441.5,3.76355594]
[1729909082214,0.41013,2441.8,2441.5,3.76355594]
[1729909082518,0.41011,2441.9,2441.5,3.76355594]
[1729909082818,3.2078,2442.0,2441.5,3.76355594]
[1729909082819,3.6179,2442.0,2441.7,2.88515594]
[1729909083127,0.41008,2442.1,2441.9,2.88515594]
[1729909083412,0.41008,2442.1,2442.0,0.8822]
[1729909083816,3.61785,2442.3,2442.0,4.9774]
[1729909084006,3.61785,2442.3,2442.0,0.8822]
[1729909084625,3.2078,2442.3,2442.0,0.8822]
[1729909084914,3.2078,2442.3,2441.5,6.52085594]
[1729909084915,0.41013,2441.8,2441.5,6.52085594]
[1729909085115,0.41013,2441.8,2441.6,0.4178]
[1729909085414,0.4275,2442.2,2441.6,0.4178]
[1729909085625,0.41014,2441.7,2441.6,0.4178]
[1729909087017,0.41016,2441.6,2441.5,0.4479]
[1729909090314,0.4275,2441.8,2441.5,0.4479]
[1729909090620,0.41016,2441.6,2441.5,0.4479]
[1729909090814,0.4275,2441.8,2441.5,0.4479]
[1729909091016,0.41016,2441.6,2441.5,0.4479]
[1729909101226,3.61792,2441.9,2441.5,7.42905594]
[1729909101423,0.41012,2441.9,2441.7,2.88515594]
[1729909101923,0.41012,2441.9,2441.8,0.4452]
[1729909102123,4.518,2442.2,2441.8,0.4452]
[1729909102423,0.4101,2442.0,2441.8,0.4452]
[1729909103331,5.43,2442.2,2441.8,0.4452]
[1729909103531,0.41011,2441.9,2441.8,0.4452]
[1729909105029,0.4101,2442.0,2441.8,0.4452]
[1729909105235,0.41008,2442.1,2441.8,0.4452]
[1729909105422,3.61787,2442.2,2441.8,0.4452]
[1729909105630,0.0650054,2442.1,2441.8,0.4452]
[1729909105823,0.4464,2442.1,2441.8,0.4452]
[1729909106025,0.85648,2442.1,2441.8,0.4452]
[1729909106332,0.4101,2442.0,2441.8,0.4452]
[1729909108325,3.2078,2442.2,2441.8,0.85531]
[1729909108532,3.61786,2442.2,2441.9,2.88515594]
[1729909108841,3.61786,2442.2,2442.0,0.4398]
[1729909109035,3.2078,2442.2,2442.0,0.4398]
[1729909109533,0.26464093,2442.8,2442.0,0.4398]
[1729909109534,0.911,2442.8,2442.1,6.98035594]
[1729909109838,0.41,2442.6,2442.1,3.72731594]
[1729909110039,0.0650213,2442.5,2442.2,0.4429]
[1729909110239,0.0650213,2442.5,2442.4,1.32965138]
[1729909110727,0.4750313,2442.5,2442.4,1.32965138]
[1729909110931,0.41001,2442.5,2442.4,1.32965138]
[1729909111529,1.32965138,2442.5,2442.2,1.77255138]
[1729909111731,3.2078,2442.6,2442.2,1.32965138]
[1729909111732,0.41004,2442.3,2442.2,1.32965138]
[1729909112230,1.29724,2442.3,2442.0,3.3209522]
[1729909112638,0.8872,2442.3,2442.0,3.3209522]
[1729909112945,0.4462,2442.4,2442.0,3.3209522]
[1729909113738,0.85623,2442.4,2442.0,3.7310322]
[1729909115848,0.41003,2442.4,2442.0,3.7310322]
[1729909116039,0.41001,2442.5,2442.2,2.8811522]
[1729909116340,0.41001,2442.5,2442.3,0.4375]
[1729909116542,0.8393,2442.6,2442.3,0.4375]
[1729909116844,0.41001,2442.5,2442.3,0.4375]
[1729909117440,0.8393,2442.6,2442.3,0.4375]
[1729909117644,0.41001,2442.5,2442.3,0.4375]
[1729909117951,3.2078,2442.8,2442.4,2.8811522]
[1729909118339,0.40998,2442.7,2442.5,0.4278]
[1729909119235,3.2078,2443.2,2442.6,2.8811522]
[1729909119440,0.40993,2443.0,2442.7,3.7767522]
[1729909119737,3.2078,2443.2,2442.7,3.7767522]
[1729909119938,3.2078,2443.2,2442.7,4.1867222]
[1729909119939,3.6177,2443.2,2442.7,4.1867222]
[1729909120341,2.1966,2443.4,2442.7,3.7767522]
[1729909120848,0.40988,2443.3,2442.9,2.8811522]
[1729909121049,1.2856,2443.4,2443.0,0.4362]
[1729909121445,0.40987,2443.3,2443.1,0.4239]
[1729909122741,1.2856,2443.4,2443.1,0.4239]
[1729909122950,4.1188,2443.5,2443.1,0.4239]
[1729909123342,0.911,2443.5,2443.1,0.4239]
[1729909123753,0.40984,2443.5,2443.2,2.8811522]
[1729909123948,0.911,2443.7,2443.2,2.8811522]
[1729909124145,3.2078,2443.8,2443.2,2.8811522]
[1729909124146,0.40983,2443.6,2443.2,3.2917522]
[1729909124344,4.1188,2443.8,2443.2,3.2917522]
[1729909124540,0.40984,2443.5,2443.2,3.2917522]
[1729909124946,4.1188,2443.8,2443.2,3.2917522]
[1729909125141,0.40985,2443.5,2443.2,3.2917522]
[1729909125347,0.40986,2443.4,2443.2,3.2917522]
[1729909125546,0.40985,2443.5,2443.2,3.2917522]
[1729909126160,0.40986,2443.4,2443.2,3.2917522]